fUST/lending_fUST_20240917
["ID","MTS","AMOUNT","RATE_DAILY","PERIOD"]
[338346205,1726536900343,733.17,0.00028,120]
[338346206,1726536900968,500.0,0.00028,120]
[338346207,1726536901155,500.0,0.00028,120]
[338346209,1726536901790,500.0,0.00028,120]
[338346210,1726536901836,1472.67,0.00028,120]
[338346211,1726536902146,502.02459352,0.00028,120]
[338346212,1726536903049,500.76478624,0.00028,120]
[338346213,1726536903942,500.0,0.00028,120]
[338346214,1726536903975,500.0,0.00028,120]
[338346215,1726536904051,500.0,0.00028,120]
[338346216,1726536904917,535.43,0.00028,120]
[338346217,1726536908507,500.0,0.00028,120]
[338346218,1726536908539,500.0,0.00028,120]
[338346219,1726536908907,500.0,0.00028,120]
[338346220,1726536909173,500.0,0.00028,120]
[338346221,1726536909447,500.0,0.00028,120]
[338346222,1726536909489,500.0,0.00028,120]
[338346223,1726536909742,500.0,0.00028,120]
[338346224,1726536910010,500.0,0.00028,120]
[338346225,1726536910204,500.0,0.00028,120]
[338346226,1726536910276,500.0,0.00028,120]
[338346227,1726536910532,500.0,0.00028,120]
[338346228,1726536910747,819.03,0.00028,120]
[338346229,1726536910817,180.99685462,0.00028,120]
[338346230,1726536911168,500.0,0.00028,120]
[338346231,1726536911469,500.0,0.00028,120]
[338346232,1726536911579,500.0,0.00028,120]
[338346233,1726536912111,263.29420821,0.00028,120]
[338346234,1726536912693,891.03,0.00028,120]
[338346235,1726536912753,500.0,0.00028,120]
[338346236,1726536913075,500.0,0.00028,120]
[338346237,1726536913439,500.0,0.00028,120]
[338346238,1726536913723,656.62,0.00028,120]
[338346239,1726536914584,634.35,0.00028,120]
[338346240,1726536915792,500.0,0.00028,120]
[338346241,1726536915918,500.0,0.00028,120]
[338346242,1726536916023,598.1667228,0.00028,120]
[338346243,1726536916294,6237.68,0.00028,120]
[338346244,1726536917030,1594.97,0.00028,120]
[338346245,1726536917081,500.0,0.00028,120]
[338346246,1726536917253,1580.97,0.00028,120]
[338346247,1726536918158,500.0,0.00028,120]
[338346248,1726536918200,528.22,0.00028,120]
[338346249,1726536919392,500.0,0.00028,120]
[338346250,1726536920001,1906.36,0.00028,120]
[338346251,1726536921752,500.0,0.00028,120]
[338346252,1726536921787,500.27440821,0.00028,120]
[338346253,1726536922364,500.0,0.00028,120]
[338346254,1726536922764,10266.24,0.00028,120]
[338346255,1726536923854,500.0,0.00028,120]
[338346256,1726536924088,339.57582238,0.00028,120]
[338346257,1726536925024,769.8,0.00028,120]
[338346259,1726536926075,500.0,0.00028,120]
[338346260,1726536928088,2855.24,0.00028,120]
[338346261,1726536928158,500.0,0.00028,120]
[338346262,1726536928293,1826.21,0.00028,120]
[338346263,1726536928873,769.11,0.00028,120]
[338346264,1726536930269,647.83,0.00028,120]
[338346265,1726536931394,1027.3,0.00028,120]
[338346266,1726536932736,1007.64,0.00028,120]
[338346267,1726536932974,1047.72,0.00028,120]
[338346268,1726536933489,808.59,0.00028,120]
[338346269,1726536933522,500.0,0.00028,120]
[338346270,1726536933826,855.23,0.00028,120]
[338346271,1726536933866,7335.9,0.00028,120]
[338346272,1726536934515,500.0,0.00028,120]
[338346273,1726536936877,500.0,0.00028,120]
[338346274,1726536937328,500.0,0.00028,120]
[338346275,1726536937686,413.17172659,0.00028,120]
[338346276,1726536937785,500.0,0.00028,120]
[338346277,1726536938039,500.0,0.00028,120]
[338346278,1726536939161,500.0,0.00028,120]
[338346279,1726536940160,500.0,0.00028,120]
[338346280,1726536940279,1516.19,0.00028,120]
[338346281,1726536941218,500.0,0.00028,120]
[338346282,1726536941378,643.15,0.00028,120]
[338346283,1726536941733,1600.24,0.00028,120]
[338346284,1726536941767,1121.16,0.00028,120]
[338346285,1726536942152,500.0,0.00028,120]
[338346286,1726536945582,3397.11,0.00028,120]
[338346287,1726536946580,500.0,0.00028,120]
[338346288,1726536947053,1213.89,0.00028,120]
[338346289,1726536947778,1421.8,0.00028,120]
[338346290,1726536947842,500.0,0.00028,120]
[338346291,1726536948057,1421.8,0.00028,120]
[338346292,1726536948317,1421.8,0.00028,120]
[338346293,1726536948584,1421.8,0.00028,120]
[338346294,1726536948666,500.0,0.00028,120]
[338346295,1726536948707,1113.18,0.00028,120]
[338346297,1726536948842,1421.8,0.00028,120]
[338346298,1726536949129,1421.8,0.00028,120]
[338346299,1726536949398,1421.8,0.00028,120]
[338346300,1726536949653,1421.8,0.00028,120]
[338346301,1726536949935,1421.8,0.00028,120]
[338346302,1726536950188,500.29797112,0.00028,120]
[338346303,1726536950228,1421.8,0.00028,120]
[338346304,1726536950506,1421.8,0.00028,120]
[338346305,1726536950817,1421.8,0.00028,120]
[338346306,1726536950900,1106.05,0.00028,120]
[338346307,1726536951079,1421.8,0.00028,120]
[338346308,1726536951230,500.0,0.00028,120]
[338346309,1726536951345,1421.8,0.00028,120]
[338346310,1726536951594,1421.8,0.00028,120]
[338346311,1726536951857,1421.8,0.00028,120]
[338346312,1726536952077,500.0,0.00028,120]
[338346313,1726536952108,1421.8,0.00028,120]
[338346314,1726536952369,1421.8,0.00028,120]
[338346315,1726536952617,1421.8,0.00028,120]
[338346316,1726536952896,1421.8,0.00028,120]
[338346317,1726536953163,1421.8,0.00028,120]
[338346318,1726536953427,1421.8,0.00028,120]
[338346319,1726536953528,500.0,0.00028,120]
[338346320,1726536953706,1421.8,0.00028,120]
[338346321,1726536953984,1421.84195424,0.00028,120]
[338346322,1726536954029,500.0,0.00028,120]
[338346323,1726536954332,2659.0,0.00028,120]
[338346324,1726536957087,500.0,0.00028,120]
[338346325,1726536957925,500.0,0.00028,120]
[338346326,1726536958395,500.0,0.00028,120]
[338346327,1726536958647,824.08,0.00028,120]
[338346328,1726536958799,500.0,0.00028,120]
[338346329,1726536959691,1157.2,0.00028,120]
[338346330,1726536960278,1170.49,0.00028,120]
[338346331,1726536960348,505.8,0.00028,120]
[338346332,1726536962007,500.0,0.00028,120]
[338346333,1726536962309,387.64963909,0.00028,120]
[338346334,1726536963188,500.0,0.00028,120]
[338346335,1726536963620,500.0,0.00028,120]
[338346336,1726536964505,500.0,0.00028,120]
[338346337,1726536964633,4269.7,0.00028,120]
[338346338,1726536968689,626.04,0.00028,120]
[338346339,1726536969157,1610.38,0.00028,120]
[338346340,1726536969623,500.0,0.00028,120]
[338346341,1726536969928,1491.03,0.00028,120]
[338346342,1726536970504,642.9,0.00028,120]
[338346343,1726536970799,714.69,0.00028,120]
[338346344,1726536971217,658.32,0.00028,120]
[338346345,1726536971248,500.0,0.00028,120]
[338346346,1726536971872,1885.51,0.00028,120]
[338346347,1726536972145,500.0,0.00028,120]
[338346348,1726536973612,500.0,0.00028,120]
[338346349,1726536975694,499.42400325,0.00028,120]
[338346350,1726536977554,500.0,0.00028,120]
[338346351,1726536978287,1157.79,0.00028,120]
[338346352,1726536978329,500.0,0.00028,120]
[338346353,1726536979376,230.34632038,0.00028,120]
[338346354,1726536979684,613.15,0.00028,120]
[338346355,1726536979817,500.0,0.00028,120]
[338346356,1726536980896,545.18,0.00028,120]
[338346357,1726536981098,2130.31,0.00028,120]
[338346358,1726536982037,502.86842851,0.00028,120]
[338346359,1726536982068,4176.94,0.00028,120]
[338346360,1726536982102,500.0,0.00028,120]
[338346361,1726536982282,500.0,0.00028,120]
[338346362,1726536982776,965.91,0.00028,120]
[338346363,1726536982852,500.0,0.00028,120]
[338346364,1726536983357,965.91,0.00028,120]
[338346365,1726536983420,965.91,0.00028,120]
[338346366,1726536983561,1197.14,0.00028,120]
[338346367,1726536983623,5532.66,0.00028,120]
[338346368,1726536983757,965.91,0.00028,120]
[338346369,1726536983943,308.76899159,0.00028,120]
[338346370,1726536984023,1680.99,0.00028,120]
[338346371,1726536984058,965.91,0.00028,120]
[338346372,1726536984317,965.91,0.00028,120]
[338346373,1726536984521,500.0,0.00028,120]
[338346374,1726536984586,965.91,0.00028,120]
[338346375,1726536984804,500.0,0.00028,120]
[338346376,1726536984836,965.91,0.00028,120]
[338346377,1726536985117,965.91,0.00028,120]
[338346378,1726536985381,965.91,0.00028,120]
[338346379,1726536985647,965.91,0.00028,120]
[338346380,1726536985934,965.91,0.00028,120]
[338346381,1726536986228,965.91,0.00028,120]
[338346382,1726536986496,965.91,0.00028,120]
[338346383,1726536986767,965.91,0.00028,120]
[338346384,1726536987049,965.91,0.00028,120]
[338346385,1726536987316,965.91,0.00028,120]
[338346386,1726536987460,500.0,0.00028,120]
[338346387,1726536987616,965.91,0.00028,120]
[338346388,1726536987968,965.91,0.00028,120]
[338346389,1726536988716,965.91,0.00028,120]
[338346390,1726536988760,500.0,0.00028,120]
[338346391,1726536988807,965.91,0.00028,120]
[338346392,1726536988883,965.91,0.00028,120]
[338346393,1726536989118,965.91,0.00028,120]
[338346394,1726536989419,965.91287099,0.00028,120]
[338346395,1726536990015,500.0,0.00028,120]
[338346396,1726536990045,500.0,0.00028,120]
[338346397,1726536990495,503.05579833,0.00028,120]
[338346398,1726536990702,500.0,0.00028,120]
[338346399,1726536992058,1549.85,0.00028,120]
[338346400,1726536992090,1039.84,0.00028,120]
[338346401,1726536992120,1130.58,0.00028,120]
[338346402,1726536992712,1014.03,0.00028,120]
[338346403,1726536992748,3020.28,0.00028,120]
[338346404,1726536993136,1882.61,0.00028,120]
[338346405,1726536993433,1882.61,0.00028,120]
[338346406,1726536993753,1882.61,0.00028,120]
[338346407,1726536993979,642.47,0.00028,120]
[338346408,1726536994046,1882.61,0.00028,120]
[338346409,1726536994254,1882.61,0.00028,120]
[338346410,1726536994538,1882.61,0.00028,120]
[338346412,1726536994815,1882.61,0.00028,120]
[338346413,1726536994856,500.0,0.00028,120]
[338346414,1726536995098,1882.61,0.00028,120]
[338346415,1726536995365,1882.61,0.00028,120]
[338346416,1726536995647,1882.61,0.00028,120]
[338346417,1726536995904,1882.61,0.00028,120]
[338346418,1726536995957,28356.54,0.00028,120]
[338346419,1726536996106,500.0,0.00028,120]
[338346420,1726536996395,1882.61,0.00028,120]
[338346421,1726536997024,1882.61,0.00028,120]
[338346422,1726536997265,1882.61,0.00028,120]
[338346423,1726536997518,2806.76,0.00028,120]
[338346424,1726536997551,1882.61,0.00028,120]
[338346425,1726536997583,500.0,0.00028,120]
[338346426,1726536997913,1882.61,0.00028,120]
[338346427,1726536998178,1882.61,0.00028,120]
[338346428,1726536998437,1882.61,0.00028,120]
[338346429,1726536998710,1882.61,0.00028,120]
[338346430,1726536999299,500.0,0.00028,120]
[338346431,1726536999337,1882.61,0.00028,120]
[338346432,1726536999395,1882.61,0.00028,120]
[338346433,1726536999444,500.0,0.00028,120]
[338346434,1726536999486,1882.61,0.00028,120]
[338346435,1726536999737,1882.61,0.00028,120]
[338346436,1726537000006,1882.65254195,0.00028,120]
[338346437,1726537000405,2238.39,0.00028,120]
[338346438,1726537001283,537.95563111,0.00028,120]
[338346439,1726537002053,748.19,0.00028,120]
[338346440,1726537002277,2655.74,0.00028,120]
[338346441,1726537002410,2823.27,0.00028,120]
[338346442,1726537002480,500.0,0.00028,120]
[338346443,1726537003596,500.0,0.00028,120]
[338346444,1726537004082,500.0,0.00028,120]
[338346445,1726537004152,229.69160595,0.00028,120]
[338346446,1726537004663,500.0,0.00028,120]
[338346447,1726537004973,500.0,0.00028,120]
[338346448,1726537005933,1079.8,0.00028,120]
[338346449,1726537006135,4872.1,0.00028,120]
[338346450,1726537006661,500.0,0.00028,120]
[338346451,1726537006855,5128.53,0.00028,120]
[338346452,1726537007433,500.27736875,0.00028,120]
[338346453,1726537007593,500.82107924,0.00028,120]
[338346454,1726537008274,500.0,0.00028,120]
[338346455,1726537009693,1604.88,0.00028,120]
[338346456,1726537009744,500.0,0.00028,120]
[338346457,1726537010463,500.0,0.00028,120]
[338346458,1726537011193,5289.93,0.00028,120]
[338346459,1726537011800,500.0,0.00028,120]
[338346460,1726537012334,500.0,0.00028,120]
[338346461,1726537015096,500.0,0.00028,120]
[338346462,1726537015407,500.0,0.00028,120]
[338346463,1726537016289,500.0,0.00028,120]
[338346464,1726537016665,500.0,0.00028,120]
[338346465,1726537016725,500.0,0.00028,120]
[338346466,1726537017363,5145.35,0.00028,120]
[338346467,1726537017884,500.0,0.00028,120]
[338346468,1726537018083,500.0,0.00028,120]
[338346469,1726537018429,2363.08,0.00028,120]
[338346470,1726537019626,501.39098781,0.00028,120]
[338346471,1726537020305,936.63,0.00028,120]
[338346472,1726537020379,500.0,0.00028,120]
[338346473,1726537020931,500.0,0.00028,120]
[338346474,1726537021805,500.0,0.00028,120]
[338346475,1726537022737,500.0,0.00028,120]
[338346476,1726537022768,500.0,0.00028,120]
[338346477,1726537023045,15977.56,0.00028,120]
[338346478,1726537023467,500.0,0.00028,120]
[338346479,1726537025125,500.62470373,0.00028,120]
[338346480,1726537025221,624.21,0.00028,120]
[338346481,1726537025567,500.0,0.00028,120]
[338346482,1726537025864,500.0,0.00028,120]
[338346483,1726537026240,901.14,0.00028,120]
[338346484,1726537026297,500.0,0.00028,120]
[338346485,1726537026896,500.0,0.00028,120]
[338346486,1726537027578,500.0,0.00028,120]
[338346487,1726537028902,910.27,0.00028,120]
[338346488,1726537028959,1421.96,0.00028,120]
[338346489,1726537029827,2430.59,0.00028,120]
[338346490,1726537030919,500.0,0.00028,120]
[338346491,1726537030977,761.19,0.00028,120]
[338346492,1726537031436,731.41,0.00028,120]
[338346493,1726537031859,2362.35,0.00028,120]
[338346494,1726537033286,500.0,0.00028,120]
[338346495,1726537033422,500.0,0.00028,120]
[338346496,1726537034073,500.0,0.00028,120]
[338346497,1726537034902,501.1303324,0.00028,120]
[338346498,1726537035057,500.0,0.00028,120]
[338346499,1726537035554,392.18152674,0.00028,120]
[338346500,1726537035942,1710.4,0.00028,120]
[338346501,1726537038657,500.0,0.00028,120]
[338346502,1726537040670,1427.38,0.00028,120]
[338346503,1726537040702,500.0,0.00028,120]
[338346504,1726537040753,533.51,0.00028,120]
[338346505,1726537041357,2647.74,0.00028,120]
[338346506,1726537043216,500.0,0.00028,120]
[338346507,1726537043789,500.0,0.00028,120]
[338346508,1726537044146,749.53,0.00028,120]
[338346509,1726537045397,500.0,0.00028,120]
[338346510,1726537045506,2616.34,0.00028,120]
[338346511,1726537047715,4893.87,0.00028,120]
[338346512,1726537048283,500.0,0.00028,120]
[338346513,1726537048765,500.0,0.00028,120]
[338346514,1726537049203,2418.19,0.00028,120]
[338346515,1726537049505,500.0,0.00028,120]
[338346516,1726537049824,867.29,0.00028,120]
[338346517,1726537050886,1620.21,0.00028,120]
[338346518,1726537051828,500.0,0.00028,120]
[338346519,1726537051881,500.0,0.00028,120]
[338346520,1726537051926,522.74930928,0.00028,120]
[338346521,1726537052686,631.61376767,0.00028,120]
[338346522,1726537052958,30188.91,0.00028,120]
[338346523,1726537054329,1415.12,0.00028,120]
[338346524,1726537054361,500.0,0.00028,120]
[338346525,1726537055380,500.0,0.00028,120]
[338346526,1726537055422,500.0,0.00028,120]
[338346527,1726537055509,500.0,0.00028,120]
[338346528,1726537057274,1519.83,0.00028,120]
[338346529,1726537057534,506.89752138,0.00028,120]
[338346530,1726537057788,6520.48,0.00028,120]
[338346531,1726537059133,1591.12,0.00028,120]
[338346532,1726537059423,500.0,0.00028,120]
[338346533,1726537059975,2087.71,0.00028,120]
[338346534,1726537060465,1290.78,0.00028,120]
[338346535,1726537062535,865.32,0.00028,120]
[338346536,1726537062594,2707.2,0.00028,120]
[338346537,1726537064561,500.0,0.00028,120]
[338346538,1726537065944,500.0,0.00028,120]
[338346539,1726537066815,500.43,0.00028,120]
[338346540,1726537067444,1169.52,0.00028,120]
[338346541,1726537067477,1089.79,0.00028,120]
[338346542,1726537068015,500.0,0.00028,120]
[338346543,1726537068893,500.0,0.00028,120]
[338346544,1726537071118,500.0,0.00028,120]
[338346545,1726537071196,2071.81,0.00028,120]
[338346546,1726537074844,500.0,0.00028,120]
[338346547,1726537074973,501.66338898,0.00028,120]
[338346548,1726537075415,529.21,0.00028,120]
[338346549,1726537075451,503.9356545,0.00028,120]
[338346550,1726537075886,870.66,0.00028,120]
[338346551,1726537076163,1623.4,0.00028,120]
[338346552,1726537076728,501.38120142,0.00028,120]
[338346553,1726537076912,500.0,0.00028,120]
[338346554,1726537077353,500.0,0.00028,120]
[338346555,1726537077887,500.0,0.00028,120]
[338346556,1726537078112,183.71491192,0.00028,120]
[338346557,1726537078143,500.0,0.00028,120]
[338346558,1726537078598,2074.38,0.00028,120]
[338346559,1726537078855,2074.38,0.00028,120]
[338346560,1726537079119,2074.38,0.00028,120]
[338346561,1726537079204,648.65663707,0.00028,120]
[338346562,1726537079410,2074.38,0.00028,120]
[338346563,1726537079452,500.0,0.00028,120]
[338346564,1726537079716,2074.38,0.00028,120]
[338346565,1726537080184,2074.38,0.00028,120]
[338346566,1726537080466,2074.38,0.00028,120]
[338346567,1726537080850,2074.38,0.00028,120]
[338346568,1726537081120,2074.38,0.00028,120]
[338346569,1726537081288,500.0,0.00028,120]
[338346570,1726537081438,2074.38,0.00028,120]
[338346571,1726537081746,500.0,0.00028,120]
[338346572,1726537081796,2074.38,0.00028,120]
[338346573,1726537081929,18855.62,0.00028,120]
[338346574,1726537081984,2074.38,0.00028,120]
[338346575,1726537082252,2074.38,0.00028,120]
[338346576,1726537082547,2074.38,0.00028,120]
[338346577,1726537083404,2074.38,0.00028,120]
[338346578,1726537083552,2074.38,0.00028,120]
[338346579,1726537083724,2074.38,0.00028,120]
[338346580,1726537083790,500.0,0.00028,120]
[338346581,1726537084134,500.0,0.00028,120]
[338346582,1726537084186,2074.38,0.00028,120]
[338346583,1726537084455,2074.38,0.00028,120]
[338346584,1726537085063,500.0,0.00028,120]
[338346585,1726537085188,2074.38,0.00028,120]
[338346586,1726537085324,928.68,0.00028,120]
[338346587,1726537085360,4284.76,0.00028,120]
[338346588,1726537085404,2074.38,0.00028,120]
[338346589,1726537085682,1695.96,0.00028,120]
[338346590,1726537085911,2074.38,0.00028,120]
[338346591,1726537085965,2074.38,0.00028,120]
[338346592,1726537086362,2074.48356621,0.00028,120]
[338346593,1726537088400,500.0,0.00028,120]
[338346594,1726537089610,500.0,0.00028,120]
[338346595,1726537091291,500.0,0.00028,120]
[338346596,1726537091404,1597.65,0.00028,120]
[338346597,1726537092177,500.0,0.00028,120]
[338346598,1726537094103,3083.55,0.00028,120]
[338346599,1726537094137,9663.28,0.00028,120]
[338346600,1726537094196,631.01,0.00028,120]
[338346601,1726537094264,2883.45,0.00028,120]
[338346602,1726537095739,500.0,0.00028,120]
[338346603,1726537096086,9782.0,0.00028,120]
[338346604,1726537096118,1737.27,0.00028,120]
[338346605,1726537096612,500.0,0.00028,120]
[338346606,1726537098669,500.0,0.00028,120]
[338346607,1726537099639,3043.54,0.00028,120]
[338346608,1726537099695,500.0,0.00028,120]
[338346609,1726537100899,500.0,0.00028,120]
[338346610,1726537101726,588.02,0.00028,120]
[338346611,1726537102291,500.0,0.00028,120]
[338346612,1726537102386,518.18995688,0.00028,120]
[338346613,1726537102662,500.0,0.00028,120]
[338346614,1726537103422,500.0,0.00028,120]
[338346615,1726537105235,500.0,0.00028,120]
[338346616,1726537105928,500.0,0.00028,120]
[338346617,1726537106960,500.0,0.00028,120]
[338346618,1726537108033,500.0,0.00028,120]
[338346619,1726537108325,305.65129473,0.00028,120]
[338346620,1726537108883,22720.97,0.00028,120]
[338346621,1726537109440,500.0,0.00028,120]
[338346622,1726537110698,4379.85,0.00028,120]
[338346623,1726537110906,500.0,0.00028,120]
[338346624,1726537111130,2842.24,0.00028,120]
[338346625,1726537111746,3942.37,0.00028,120]
[338346626,1726537114389,500.0,0.00028,120]
[338346627,1726537116804,1077.19,0.00028,120]
[338346628,1726537116866,567.19,0.00028,120]
[338346629,1726537117717,500.0,0.00028,120]
[338346630,1726537118214,501.39689532,0.00028,120]
[338346631,1726537119017,500.0,0.00028,120]
[338346632,1726537121410,1817.76,0.00028,120]
[338346633,1726537122340,2215.98,0.00028,120]
[338346634,1726537122947,500.0,0.00028,120]
[338346635,1726537123744,500.0,0.00028,120]
[338346636,1726537123782,2870.72,0.00028,120]
[338346637,1726537124533,5572.2,0.00028,120]
[338346638,1726537126226,500.0,0.00028,120]
[338346639,1726537126265,5629.71,0.00028,120]
[338346640,1726537126319,503.76259852,0.00028,120]
[338346641,1726537126878,1036.83,0.00028,120]
[338346642,1726537129595,1251.63,0.00028,120]
[338346643,1726537130667,500.0,0.00028,120]
[338346644,1726537130717,851.04,0.00028,120]
[338346645,1726537131566,1014.26,0.00028,120]
[338346646,1726537134009,25003.96,0.00028,120]
[338346647,1726537135774,500.0,0.00028,120]
[338346648,1726537138825,500.0,0.00028,120]
[338346649,1726537139197,500.0,0.00028,120]
[338346650,1726537139983,500.0,0.00028,120]
[338346651,1726537140460,667.46,0.00028,120]
[338346652,1726537140792,500.0,0.00028,120]
[338346653,1726537142148,500.0,0.00028,120]
[338346654,1726537142284,542.42,0.00028,120]
[338346655,1726537142583,500.0,0.00028,120]
[338346656,1726537142931,500.0,0.00028,120]
[338346657,1726537144180,500.0,0.00028,120]
[338346658,1726537144791,617.71,0.00028,120]
[338346659,1726537145472,500.0,0.00028,120]
[338346660,1726537145830,1061.61,0.00028,120]
[338346661,1726537145869,853.91,0.00028,120]
[338346662,1726537148254,984.5,0.00028,120]
[338346663,1726537148594,506.21,0.00028,120]
[338346664,1726537149414,500.0,0.00028,120]
[338346665,1726537150113,500.0,0.00028,120]
[338346666,1726537153489,500.0,0.00028,120]
[338346667,1726537154142,500.0,0.00028,120]
[338346668,1726537155231,602.78485499,0.00028,120]
[338346669,1726537156656,500.0,0.00028,120]
[338346670,1726537156864,500.0,0.00028,120]
[338346671,1726537157609,776.37,0.00028,120]
[338346672,1726537158460,500.0,0.00028,120]
[338346673,1726537158833,898.99,0.00028,120]
[338346674,1726537159890,9838.48,0.00028,120]
[338346675,1726537160646,500.0,0.00028,120]
[338346676,1726537160943,500.0,0.00028,120]
[338346677,1726537161366,1038.13,0.00028,120]
[338346678,1726537163433,500.0,0.00028,120]
[338346679,1726537164142,500.0,0.00028,120]
[338346680,1726537165789,1198.06,0.00028,120]
[338346681,1726537166459,708.31,0.00028,120]
[338346682,1726537166656,1381.84,0.00028,120]
[338346683,1726537167227,500.0,0.00028,120]
[338346684,1726537168064,500.0,0.00028,120]
[338346685,1726537168193,2125.69,0.00028,120]
[338346686,1726537168780,500.0,0.00028,120]
[338346687,1726537169515,1059.96,0.00028,120]
[338346688,1726537169552,714.55,0.00028,120]
[338346689,1726537172527,500.0,0.00028,120]
[338346690,1726537174765,1103.49,0.00028,120]
[338346691,1726537175078,1103.49,0.00028,120]
[338346692,1726537175313,1103.49,0.00028,120]
[338346693,1726537175627,1103.49,0.00028,120]
[338346694,1726537175656,500.0,0.00028,120]
[338346695,1726537175687,500.0,0.00028,120]
[338346696,1726537175843,500.0,0.00028,120]
[338346697,1726537175902,1103.49,0.00028,120]
[338346698,1726537176168,1103.49,0.00028,120]
[338346699,1726537176228,457.57525217,0.00028,120]
[338346700,1726537176434,1103.49,0.00028,120]
[338346701,1726537176691,1103.49,0.00028,120]
[338346702,1726537176959,1103.49,0.00028,120]
[338346703,1726537177252,1103.49,0.00028,120]
[338346704,1726537177491,1103.49,0.00028,120]
[338346705,1726537177731,1453.02,0.00028,120]
[338346706,1726537177761,1103.49,0.00028,120]
[338346707,1726537178016,1103.49,0.00028,120]
[338346708,1726537178516,1406.73,0.00028,120]